bitfinex/quotes_ETHUSD_20241124
["timestamp","ask_amount","ask_price","bid_price","bid_amount"]
[1732449733746,0.0654519,3344.7,3343.0,0.1]
[1732449733747,2.98906,3345.6,3344.3,3.0]
[1732449733947,3.71475,3346.4,3344.4,0.02989544]
[1732449734183,2.98928,3345.3,3344.4,0.8291]
[1732449734398,2.98913,3345.5,3344.5,0.38291]
[1732449734680,2.98913,3345.5,3344.6,0.02989546]
[1732449734882,0.06557582,3345.4,3344.5,0.38291]
[1732449735092,2.98856,3346.1,3344.8,3.0]
[1732449735275,0.06573466,3345.3,3345.0,0.8291]
[1732449735584,2.98885,3345.8,3345.0,0.8291]
[1732449735973,0.06585216,3345.7,3345.0,0.8291]
[1732449736389,2.98848,3346.2,3345.0,0.8291]
[1732449736564,0.06585216,3345.6,3345.0,0.8291]
[1732449736765,0.55,3346.0,3345.1,0.38291]
[1732449737095,0.55,3346.0,3345.0,0.8291]
[1732449737308,0.06585216,3345.9,3345.0,0.8291]
[1732449737485,0.55,3346.0,3345.0,0.8291]
[1732449737816,0.06585216,3345.8,3345.0,0.8291]
[1732449738093,0.06585216,3345.7,3345.0,0.8291]
[1732449738296,0.60067497,3347.1,3345.0,0.8291]
[1732449738297,3.53819,3346.5,3345.0,0.8291]
[1732449738597,0.06585216,3345.6,3345.0,0.8291]
[1732449738761,2.98877,3345.9,3345.0,0.8291]
[1732449738963,0.06585216,3345.5,3345.0,1.21201]
[1732449739191,0.06585216,3345.5,3344.0,0.1]
[1732449739192,2.9884,3346.3,3345.1,0.02989198]
[1732449739363,0.06585216,3345.4,3345.2,0.8291]
[1732449739560,2.98832,3346.4,3345.2,0.8291]
[1732449739761,2.98848,3346.2,3345.2,0.8291]
[1732449739966,3.05441996,3346.3,3345.2,0.8291]
[1732449740191,0.60067497,3347.1,3345.3,0.85899084]
[1732449740371,0.06383304,3346.2,3345.3,0.85899084]
[1732449740580,0.60067497,3347.1,3345.3,0.85899084]
[1732449740581,2.98794,3346.8,3345.3,0.85899084]
[1732449740886,0.60067497,3347.1,3345.3,0.85899084]
[1732449740887,0.06433192,3346.7,3345.3,0.85899084]
[1732449741066,9.8910953,3348.1,3345.8,0.8291]
[1732449741265,0.06433192,3346.6,3345.8,0.8291]
[1732449741498,2.98788,3346.9,3345.8,0.8291]
[1732449741705,0.06433192,3346.5,3345.8,0.8291]
[1732449741904,0.59995524,3347.3,3345.9,0.02988339]
[1732449741905,2.98758,3347.2,3345.9,0.02988339]
[1732449742192,2.98758,3347.2,3345.1,0.1]
[1732449742193,0.06433192,3346.4,3346.0,0.7906]
[1732449742377,3.58743524,3347.3,3346.2,0.7906]
[1732449742799,0.06433192,3347.2,3346.2,0.7906]
[1732449743717,0.55,3347.4,3346.4,0.7906]
[1732449744021,0.06433192,3347.1,3346.4,0.7906]
[1732449744316,1.31424398,3348.1,3346.4,0.7906]
[1732449744317,0.06433192,3347.0,3346.4,0.7906]
[1732449744497,2.9872,3347.7,3346.5,0.8204777]
[1732449744683,2.9872,3347.7,3346.5,0.7906]
[1732449744684,0.06433192,3346.9,3346.5,0.7906]
[1732449744888,2.98743,3347.4,3346.5,0.7906]
[1732449744889,2.98752,3347.3,3346.5,0.7906]
[1732449745085,0.06433192,3346.8,3346.5,0.7906]
[1732449745414,2.98705,3347.8,3346.6,0.02987688]
[1732449745615,2.98705,3347.8,3346.7,0.7906]
[1732449745910,2.98687,3348.0,3346.7,0.7906]
[1732449745911,0.06433192,3347.7,3346.7,0.7906]
[1732449746084,0.06433192,3347.7,3346.6,0.02987688]
[1732449746085,0.58784398,3348.1,3346.8,0.82047437]
[1732449746289,0.58784398,3348.1,3347.2,0.7906]
[1732449746290,0.06433192,3347.6,3347.2,0.7906]
[1732449746503,0.58784398,3348.1,3347.4,0.7906]
[1732449746877,0.06486286,3348.0,3347.4,0.7906]
[1732449747279,2.98695,3347.9,3347.4,0.7906]
[1732449747474,0.58784398,3348.1,3347.4,0.7906]
[1732449747690,0.0649423,3347.8,3347.4,0.7906]
[1732449747892,0.58784398,3348.1,3347.4,0.7906]
[1732449748088,2.98696,3347.9,3347.4,0.7906]
[1732449748298,0.06494865,3348.0,3347.4,0.7906]
[1732449748510,3.57462398,3348.1,3347.4,0.7906]
[1732449748687,2.98724,3347.6,3347.4,0.7906]
[1732449748887,2.98703,3347.8,3347.4,0.7906]
[1732449749199,0.58784398,3348.1,3347.4,0.7906]
[1732449749200,0.0649836,3347.5,3347.4,0.7906]
[1732449749402,0.55,3348.0,3347.4,0.7906]
[1732449749609,0.0649836,3347.5,3347.4,0.7906]
[1732449749814,0.55,3348.0,3347.4,0.7906]
[1732449749977,0.58784398,3348.1,3347.4,0.7906]
[1732449749978,0.06495501,3347.5,3347.4,0.7906]
[1732449750329,2.98615,3348.8,3347.4,0.7906]
[1732449750615,2.98598,3349.0,3347.6,0.7906]
[1732449750822,2.98598,3349.0,3347.8,0.7906]
[1732449751232,2.98584,3349.2,3347.8,0.7906]
[1732449751389,8.8537545,3349.8,3347.8,0.7906]
[1732449751390,2.98588,3349.1,3347.8,0.7906]
[1732449751595,2.98597,3349.0,3347.8,0.7906]
[1732449751817,2.98634,3348.6,3347.8,0.7906]
[1732449752132,2.98614,3348.8,3347.8,0.7906]
[1732449752426,2.98671,3348.2,3347.8,0.7906]
[1732449752650,0.55,3347.9,3347.8,0.7906]
[1732449753138,0.55,3347.8,3346.8,0.7906]
[1732449753292,2.98703,3347.8,3346.8,0.7906]
[1732449753491,2.98732,3347.5,3346.8,0.7906]
[1732449753693,0.55,3347.4,3346.8,0.7906]
[1732449753913,2.98687,3348.0,3346.8,0.7906]
[1732449754123,2.98741,3347.4,3346.8,0.7906]
[1732449754310,0.55,3347.4,3346.8,0.7906]
[1732449754916,4.0459,3351.7,3346.8,0.7906]
[1732449754917,0.55,3347.8,3346.8,0.7906]
[1732449755136,0.55,3347.9,3346.8,0.7906]
[1732449755304,2.98746,3347.4,3346.8,0.7906]
[1732449755509,2.98758,3347.2,3346.8,0.7906]
[1732449755706,2.98782,3347.0,3346.8,0.7906]
[1732449755907,0.55,3347.4,3346.8,0.7906]
[1732449756237,0.55,3347.2,3346.8,0.7906]
[1732449756398,2.98737,3347.5,3346.8,0.7906]
[1732449756597,0.55,3347.6,3346.8,0.7906]
[1732449756794,2.98758,3347.2,3346.8,0.7906]
[1732449757128,2.9869,3348.0,3346.8,0.7906]
[1732449757129,2.98745,3347.4,3346.8,0.7906]
[1732449757525,0.55,3347.3,3346.8,0.7906]
[1732449757694,0.55,3347.8,3346.9,0.02987717]
[1732449757899,3.53712,3347.8,3346.8,0.7906]
[1732449758094,2.98746,3347.4,3346.8,0.7906]
[1732449758533,2.98721,3347.6,3346.8,0.7906]
[1732449758694,2.98724,3347.6,3346.8,0.7906]
[1732449758901,0.55,3347.8,3346.8,0.7906]
[1732449759096,2.98748,3347.3,3346.8,0.7906]
[1732449759321,0.55,3347.4,3346.8,0.7906]
[1732449759496,3.53742,3347.4,3346.8,0.7906]
[1732449759899,2.98754,3347.3,3346.8,0.7906]
[1732449760711,2.98757,3347.2,3346.8,0.7906]
[1732449760930,0.06563527,3347.2,3346.8,0.7906]
[1732449761241,0.06563527,3347.1,3346.8,0.7906]
[1732449761413,2.98713,3347.7,3346.8,0.7906]
[1732449761617,0.06563527,3347.6,3346.8,0.7906]
[1732449761938,2.98678,3348.1,3347.0,0.7906]
[1732449761939,0.55,3348.0,3347.0,0.7906]
[1732449762141,0.06563209,3347.5,3347.0,0.7906]
[1732449762440,0.55,3347.7,3347.0,0.7906]
[1732449762597,0.55,3348.0,3347.0,0.7906]
[1732449762799,0.06563209,3347.9,3347.1,0.02987467]
[1732449763011,0.06563209,3347.9,3347.2,0.7707]
[1732449763215,0.61067063,3348.3,3347.4,0.7707]
[1732449763527,8.8537545,3349.2,3347.7,3.0]
[1732449763733,0.06563209,3348.2,3347.8,1.07368696]
[1732449763941,2.98603,3349.0,3348.0,0.7707]
[1732449764104,0.06563209,3348.1,3348.0,0.7707]
[1732449764307,0.7264,3349.4,3348.0,0.7707]
[1732449764308,2.98645,3348.5,3348.0,0.7707]
[1732449764634,2.98628,3348.7,3348.0,0.7707]
[1732449764801,2.98622,3348.8,3348.0,0.7707]
[1732449765004,2.98632,3348.6,3348.0,0.7707]
[1732449765199,2.98578,3349.2,3348.0,0.7707]
[1732449765426,3.0,3349.0,3347.7,0.7707]
[1732449765626,3.0,3349.0,3346.6,0.7707]
[1732449765627,2.98704,3347.8,3346.6,0.7707]
[1732449765829,0.06563209,3347.7,3346.8,0.7707]
[1732449766038,2.98775,3347.0,3346.8,0.7707]
[1732449766337,0.06563209,3346.9,3346.8,0.7707]
[1732449766541,0.61563209,3346.9,3346.8,0.7707]
[1732449766741,3.60346209,3346.9,3346.8,0.7707]
[1732449766915,0.61563209,3346.9,3345.9,0.7707]
[1732449767122,2.98802,3346.7,3346.0,0.15613]
[1732449767525,2.98796,3346.8,3346.0,0.15613]
[1732449767727,0.06556856,3346.6,3346.1,0.171743]
[1732449767928,0.55,3346.9,3346.1,0.171743]
[1732449768135,0.06556856,3346.5,3346.1,0.171743]
[1732449768335,0.55,3346.9,3346.2,0.3972324]
[1732449768646,0.27,3376.4,3346.3,0.80058103]
[1732449768647,0.7264,3348.0,3346.3,0.80058103]
[1732449768852,0.7264,3348.0,3346.6,0.7707]
[1732449768853,2.98731,3347.5,3346.6,0.7707]
[1732449769022,0.065505,3347.4,3346.6,0.7707]
[1732449769410,0.065505,3347.4,3346.7,0.02987615]
[1732449769607,0.60619786,3347.9,3346.8,0.7707]
[1732449769812,3.05259538,3347.8,3346.8,0.7707]
[1732449770019,2.98724,3347.6,3346.8,0.7707]
[1732449770244,2.9871,3347.8,3346.8,1.14777]
[1732449770545,0.06556538,3347.7,3346.8,1.14777]
[1732449770748,3.05269538,3347.7,3346.8,0.7707]
[1732449770911,0.55,3347.6,3346.8,0.7707]
[1732449771112,3.60289707,3347.6,3346.8,0.7707]
[1732449771431,0.06566389,3347.5,3346.8,0.7707]
[1732449771761,2.98736,3347.5,3346.8,0.7707]
[1732449771916,0.55,3347.3,3346.8,0.7707]
[1732449772539,2.98772,3347.1,3346.8,0.7707]
[1732449773114,0.065648,3347.0,3346.8,0.7707]
[1732449773719,0.55,3347.2,3346.8,0.7707]
[1732449773918,0.065648,3346.9,3346.8,0.7707]
[1732449774460,3.53758,3347.2,3346.8,0.7707]
[1732449774669,0.065648,3347.1,3346.8,0.7707]
[1732449775356,0.55,3346.9,3346.3,0.7707]
[1732449775655,0.065648,3347.1,3346.3,0.7707]
[1732449775656,0.065648,3346.8,3346.3,0.7707]
[1732449775816,0.55,3347.0,3346.3,0.7707]
[1732449776022,0.065648,3346.9,3346.3,0.7707]
[1732449776420,0.55,3347.3,3346.4,0.37707]
[1732449776651,0.065648,3347.2,3346.3,0.8005797]
[1732449776841,0.55,3347.6,3346.6,0.7707]
[1732449777137,0.55,3347.4,3346.6,0.7707]
[1732449777341,0.55,3347.4,3346.6,1.14777]
[1732449777835,0.06522855,3347.3,3346.6,0.7707]
[1732449778063,0.55,3347.6,3346.7,0.02987629]
[1732449778280,0.06522855,3347.5,3346.7,0.02987629]
[1732449778557,0.06522855,3347.5,3346.9,0.7707]
[1732449778747,0.06522855,3347.5,3347.0,0.02987372]
[1732449778950,2.98658,3348.4,3347.1,0.7707]
[1732449779145,0.06522855,3347.4,3347.1,0.7707]
[1732449779472,2.98658,3348.4,3347.1,0.7707]
[1732449779772,2.98651,3348.4,3347.1,3.7707]
[1732449780062,0.06522855,3348.3,3347.3,0.7707]
[1732449780749,0.06522855,3348.3,3347.4,0.80057011]
[1732449780938,2.9863,3348.7,3347.4,0.80057011]
[1732449781149,0.06522855,3348.2,3347.4,0.80057011]
[1732449781347,2.98656,3348.4,3347.4,0.7707]
[1732449781983,2.98674,3348.2,3347.4,0.7707]
[1732449782149,2.98661,3348.3,3347.4,0.7707]
[1732449782346,0.06522855,3348.1,3347.4,1.14777]
[1732449782534,0.55,3348.4,3347.4,0.7707]
[1732449782738,0.06522855,3348.0,3347.4,1.14777]
[1732449782950,0.55,3348.6,3347.4,1.17764013]
[1732449783149,0.06522855,3347.9,3347.4,0.7707]
[1732449783353,0.55,3348.5,3347.4,0.7707]
[1732449783578,0.06522855,3347.8,3347.4,0.7707]
[1732449783780,0.55,3348.5,3347.4,0.7707]
[1732449783981,2.9874,3347.4,3347.0,0.7877]
[1732449784138,0.55,3348.2,3347.0,0.7877]
[1732449784339,2.9873,3347.5,3346.1,0.7877]
[1732449784589,0.7264,3348.1,3346.1,0.94851756]
[1732449784590,2.98763,3347.2,3346.1,0.94851756]
[1732449784736,3.53742,3347.4,3346.1,0.7877]
[1732449784937,0.55,3347.0,3346.1,0.7877]
[1732449785364,0.06522855,3346.9,3346.1,0.7877]
[1732449785739,2.98741,3347.4,3346.3,0.7877]
[1732449785740,0.55,3347.4,3346.3,0.7877]
[1732449785935,0.55,3347.4,3346.1,0.16081809]
[1732449785936,0.06522855,3346.8,3346.5,0.7877]
[1732449786141,0.55,3347.4,3346.5,0.7877]
[1732449786362,0.06522855,3346.7,3346.5,0.7877]
[1732449786539,3.0,3348.2,3346.5,0.7877]
[1732449786540,0.55,3348.0,3346.6,0.7877]
[1732449786753,0.55,3347.7,3346.6,0.7877]
[1732449786959,0.55,3347.7,3346.7,0.3817576]
[1732449787157,0.7264,3348.5,3346.8,0.81757457]
[1732449787364,0.7264,3348.5,3346.9,3.0]
[1732449787365,2.98721,3347.7,3346.9,3.0]
[1732449787540,2.98723,3347.6,3346.8,0.7877]
[1732449787974,2.98665,3348.3,3346.8,1.16647]
[1732449788137,2.98665,3348.3,3346.8,0.7877]
[1732449788587,0.55,3347.9,3346.8,0.7877]
[1732449788797,0.55,3347.9,3346.9,0.02987442]
[1732449789005,0.55,3347.7,3346.8,0.7877]
[1732449789151,2.98724,3347.6,3346.8,1.16647]
[1732449789346,0.55,3347.7,3346.8,0.7877]
[1732449789554,2.98687,3348.0,3346.8,0.7877]
[1732449789853,2.98687,3348.0,3345.8,0.8906]
[1732449789854,2.98668,3348.2,3347.0,0.7877]
[1732449790087,4.29525319,3348.5,3347.0,0.7877]
[1732449790088,2.98652,3348.4,3347.2,0.7877]
[1732449790296,2.98661,3348.3,3347.2,0.7877]
[1732449790471,2.98661,3348.3,3347.3,0.38175704]
[1732449790785,2.98661,3348.3,3347.2,0.7877]
[1732449790985,2.98685,3348.0,3347.2,0.7877]
[1732449791193,2.98685,3348.0,3347.2,1.16647]
[1732449791498,2.98709,3347.8,3347.2,0.7877]
[1732449792186,0.06555906,3347.7,3347.2,0.7877]
[1732449792890,0.06555906,3347.6,3347.2,0.7877]
[1732449793048,0.06555906,3347.6,3347.3,0.37877]
[1732449793250,2.98667,3348.2,3347.2,0.7877]
[1732449793450,0.55,3347.8,3347.2,0.7877]
[1732449793747,3.53708,3347.8,3347.2,0.7877]
[1732449794085,0.06555906,3347.7,3347.2,0.7877]
[1732449795254,2.98686,3348.0,3347.2,0.7877]
[1732449795474,0.55,3348.1,3347.2,0.7877]
[1732449795749,0.06555906,3348.0,3347.3,0.02987121]
[1732449795965,0.06555906,3348.0,3347.4,0.7877]
[1732449796180,0.58237319,3348.5,3347.6,0.7877]
[1732449796368,0.06560671,3347.9,3347.6,0.7877]
[1732449796566,2.98625,3348.7,3347.6,0.7877]
[1732449796766,0.06560671,3347.8,3347.6,0.7877]
[1732449796996,2.98666,3348.3,3347.6,0.7877]
[1732449797210,0.06560671,3347.7,3347.1,3.0]
[1732449797503,2.98732,3347.5,3347.2,0.8287]
[1732449797711,0.06569566,3347.6,3346.2,0.59820116]
[1732449797863,3.53767,3347.1,3346.2,0.17886707]
[1732449798064,0.55,3346.9,3346.1,0.8287]
[1732449798270,0.55,3346.9,3346.2,0.02988146]
[1732449798519,11.8537545,3348.2,3346.2,0.02988146]
[1732449798816,0.06566072,3346.8,3346.3,0.8287]
[1732449799028,4.26319,3348.1,3346.5,3.0]
[1732449799307,0.55,3347.9,3346.7,0.8287]
[1732449799479,2.98704,3347.8,3346.7,0.8287]
[1732449799684,0.55,3347.6,3346.7,0.8287]
[1732449800298,0.0654828,3347.5,3346.8,0.02987561]
[1732449800618,2.98712,3347.7,3346.9,0.8287]
[1732449800775,0.55,3347.8,3346.9,0.8287]
[1732449800776,0.0654828,3347.4,3346.9,0.8287]
[1732449800967,0.55,3347.8,3346.9,0.8287]
[1732449801174,0.0654828,3347.3,3346.9,1.12748]
[1732449801388,2.98722,3347.6,3346.9,1.12748]
[1732449801588,0.0654828,3347.2,3346.9,1.12748]
[1732449801822,0.55,3347.9,3346.9,0.8287]
[1732449802006,0.0654828,3347.1,3347.0,0.29877]
[1732449802171,2.98709,3347.8,3347.0,0.29877]
[1732449802376,0.0654828,3347.1,3347.0,0.29877]
[1732449802777,0.55,3347.6,3347.0,0.29877]
[1732449802985,0.0654828,3347.1,3347.0,0.29877]
[1732449803306,0.55,3347.8,3347.3,0.29874]
[1732449803491,0.55,3347.8,3347.0,0.29877]
[1732449803709,0.0654828,3347.7,3347.3,0.29874]
[1732449803880,0.0654828,3347.7,3347.5,0.29873]
[1732449804245,0.55,3348.4,3347.7,0.8164]
[1732449804400,2.98648,3348.5,3347.7,1.1151]
[1732449804401,2.98645,3348.5,3347.7,1.1151]
[1732449804713,3.71256,3348.8,3348.1,0.29867]
[1732449804924,2.98602,3349.0,3348.1,0.29867]
[1732449804925,2.98607,3348.9,3348.1,0.29867]
[1732449805108,2.98607,3348.9,3348.2,0.8164]
[1732449805413,2.98607,3348.9,3348.2,1.11506]
[1732449805785,0.60627201,3349.1,3348.2,1.11506]
[1732449805786,2.9862,3348.8,3348.2,0.8164]
[1732449805986,2.98635,3348.6,3348.2,0.8164]
[1732449806484,0.06569248,3348.5,3348.2,0.8164]
[1732449807005,0.55,3348.9,3348.4,0.29864]
[1732449807210,0.55,3349.1,3348.4,0.29864]
[1732449807505,0.55,3349.1,3348.2,1.11506]
[1732449807506,0.55,3348.9,3348.2,1.11506]
[1732449807984,3.53606,3348.9,3348.2,1.11506]
[1732449808406,2.98634,3348.6,3348.2,0.8164]
[1732449808621,2.98634,3348.6,3347.8,1.11509]
[1732449808622,3.53644,3348.5,3347.8,1.11509]
[1732449808781,0.55,3348.5,3347.8,0.8164]
[1732449808981,2.98669,3348.2,3347.8,0.8164]
[1732449809233,0.55,3348.3,3347.8,0.8164]
[1732449809516,0.55,3348.3,3347.0,0.02986914]
[1732449809517,0.55,3347.9,3347.2,0.29875]
[1732449809685,0.55,3347.9,3347.3,0.29874]
[1732449810317,0.55,3348.1,3347.3,0.29874]
[1732449810517,3.53679,3348.1,3347.3,0.29874]
[1732449810905,2.98665,3348.3,3347.3,0.3286127]
[1732449811115,0.55,3348.1,3347.5,0.29872]
[1732449811320,0.55,3348.1,3347.4,0.29873]
[1732449811494,2.98688,3348.0,3347.3,0.29874]
[1732449811915,2.98687,3348.0,3347.2,0.29875]
[1732449812094,2.98685,3348.0,3347.1,1.11515]
[1732449812291,1.2764,3348.1,3347.1,0.8164]
[1732449812292,3.53716,3347.7,3347.1,0.8164]
[1732449812600,0.55,3347.7,3347.1,0.8164]
[1732449812808,0.55,3348.0,3347.5,0.29872]
[1732449813027,2.9865,3348.4,3347.7,0.29871]
[1732449813028,0.55,3348.3,3347.7,0.29871]
[1732449813209,0.55,3348.4,3347.8,0.2987]
[1732449813720,3.53672,3348.2,3347.4,0.8164]
[1732449813898,3.53672,3348.2,3347.7,0.2987]
[1732449813899,0.55,3348.2,3347.7,0.2987]
[1732449814097,0.55,3348.3,3347.7,0.2987]
[1732449814516,3.53647,3348.5,3347.9,0.29869]
[1732449814720,0.55,3348.5,3348.0,0.29868]
[1732449814923,0.60982697,3348.7,3348.0,0.29868]
[1732449814924,3.59614697,3348.7,3348.0,0.29868]
[1732449815296,0.60982697,3348.7,3348.0,0.29868]
[1732449815537,0.60982697,3348.7,3348.2,0.29866]
[1732449815722,0.60982697,3348.7,3348.4,0.29864]
[1732449816044,2.98606,3348.9,3348.2,0.29866]
[1732449816720,2.98596,3349.0,3348.2,0.29866]
[1732449817103,0.55,3348.9,3348.2,0.29866]
[1732449817304,0.55,3349.0,3348.1,0.8164]
[1732449817525,2.98628,3348.7,3348.0,0.29868]
[1732449817707,0.55,3348.8,3348.3,0.29865]
[1732449818235,0.1477655,3349.9,3348.6,0.29863]
[1732449818236,2.98571,3349.3,3348.6,0.29863]
[1732449818740,3.71209,3349.4,3348.7,0.29862]
[1732449818909,2.98573,3349.3,3348.5,0.7693]
[1732449819241,3.71209,3349.4,3348.5,0.7693]
[1732449819242,2.98579,3349.2,3348.5,1.06793]
[1732449819735,0.58588381,3349.1,3348.8,0.29861]
[1732449820036,0.58588381,3349.1,3348.5,0.7693]
[1732449820037,0.7264,3349.7,3348.7,0.29862]
[1732449820210,2.98568,3349.4,3348.7,0.29862]
[1732449820414,2.98543,3349.6,3348.7,0.29862]
[1732449820643,2.98536,3349.7,3349.1,0.29858]
[1732449820945,0.06589575,3349.6,3349.2,0.7693]
[1732449821123,0.1477655,3349.9,3349.2,0.7693]
[1732449821301,0.06589575,3349.5,3349.2,1.06787]
[1732449821504,3.1329855,3349.9,3349.2,1.06787]
[1732449821712,0.06589575,3349.8,3349.3,0.29856]
[1732449821916,0.06589575,3349.8,3349.4,0.29855]
[1732449822609,0.06589575,3349.8,3349.2,0.7693]
[1732449822828,2.98536,3349.7,3349.2,0.7693]
[1732449823044,3.1329855,3349.9,3349.3,0.29856]
[1732449823205,0.06655627,3349.6,3349.2,0.7693]
[1732449823544,0.06655627,3349.5,3349.2,0.7693]
[1732449823709,0.1477655,3349.9,3349.4,0.29856]
[1732449823903,0.06655627,3349.8,3349.4,0.29856]
[1732449824714,0.06655627,3349.8,3349.2,0.7693]
[1732449824919,0.06655627,3349.8,3349.7,1.08533]
[1732449826322,0.06655627,3349.8,3349.7,0.7868]
[1732449826523,0.1477655,3349.9,3349.7,1.08532]
[1732449826838,0.1477655,3349.9,3349.8,0.29852]
[1732449827349,0.1477655,3349.9,3349.8,0.32837227]
[1732449827517,0.1477655,3349.9,3349.8,0.29852]
[1732449828351,0.1477655,3349.9,3349.8,1.4480108]
[1732449829062,0.1477655,3349.9,3349.8,4.4480108]
[1732449829267,0.1477655,3349.9,3349.8,4.44381632]
[1732449829720,0.1477655,3349.9,3349.8,1.44381632]
[1732449830056,0.1477655,3349.9,3349.8,4.08112552]
[1732449830669,0.1477655,3349.9,3349.8,1.08112552]
[1732449831169,0.1477655,3349.9,3349.8,0.7868]
[1732449833733,0.21448046,3349.9,3349.8,0.7868]
[1732449834372,0.1477655,3349.9,3349.8,0.7868]
[1732449834670,0.1477655,3349.9,3349.8,1.16548]
[1732449836046,0.1477655,3349.9,3349.8,0.7868]
[1732449837937,0.1477655,3349.9,3349.8,0.81664622]
[1732449839466,0.1477655,3349.9,3349.8,0.7868]
[1732449839671,0.1477655,3349.9,3349.8,0.81664584]
[1732449839856,5.5e-06,3349.9,3349.8,0.81664584]
[1732449841474,5.5e-06,3349.9,3349.8,0.7868]
[1732449842233,5.5e-06,3349.9,3349.5,0.7866]
[1732449842650,5.5e-06,3349.9,3349.7,3.0]
[1732449842968,5.5e-06,3349.9,3349.8,0.37866]
[1732449843391,0.06752313,3349.9,3349.8,0.37866]
[1732449843539,5.5e-06,3349.9,3349.8,0.37866]
[1732449843735,5.5e-06,3349.9,3349.8,0.4085073]
[1732449843933,5.5e-06,3349.9,3349.8,0.0298473]
[1732449844131,5.5e-06,3349.9,3349.7,3.02984731]
[1732449844337,5.5e-06,3349.9,3349.7,0.02984731]
[1732449844556,5.5e-06,3349.9,3349.7,3.02984731]
[1732449844742,5.5e-06,3349.9,3349.5,0.7866]
[1732449844998,2.9852355,3349.9,3349.0,0.7866]
[1732449845208,0.06751763,3349.8,3349.1,0.02985276]
[1732449845577,5.5e-06,3349.9,3349.1,0.02985276]
[1732449845783,0.06751763,3349.7,3349.1,0.02985276]
[1732449846002,5.5e-06,3349.9,3349.2,0.7866]
[1732449846183,0.06751763,3349.6,3349.3,0.02984938]
[1732449846512,5.5e-06,3349.9,3349.3,0.02984938]
[1732449846921,0.06751763,3349.8,3349.4,3.0]
[1732449847128,0.01751763,3349.8,3349.5,0.41149342]
[1732449847414,5.5e-06,3349.9,3349.5,0.02984848]
[1732449848183,0.06579703,3349.8,3349.5,3.02984848]
[1732449848485,0.06579703,3349.8,3349.7,0.7866]
[1732449848703,5.5e-06,3349.9,3349.7,0.81644816]
[1732449848901,5.5e-06,3349.9,3349.7,0.7866]
[1732449849105,0.06579703,3349.8,3349.7,0.7866]
[1732449849390,0.06570823,3349.8,3349.0,0.7866]
[1732449849602,0.06570823,3349.8,3349.1,0.02985395]
[1732449850492,5.5e-06,3349.9,3349.1,0.02985395]
[1732449850810,0.06570823,3349.8,3349.1,0.02985395]
[1732449851508,5.5e-06,3349.9,3349.2,3.0]
[1732449851830,5.5e-06,3349.9,3349.3,0.3816454]
[1732449851995,0.06570823,3349.8,3349.4,0.02984876]
[1732449852194,5.5e-06,3349.9,3349.4,0.02984876]
[1732449852502,0.06570823,3349.7,3349.4,0.02984876]
[1732449852840,5.5e-06,3349.9,3349.4,0.02984876]
[1732449853128,5.5e-06,3349.9,3349.0,0.7866]
[1732449853449,5.5e-06,3349.9,3348.7,0.02984876]
[1732449853450,0.7264,3349.7,3348.7,0.81644876]
[1732449853798,0.06567017,3349.6,3348.7,0.7866]
[1732449854303,0.55,3349.5,3348.5,0.2983]
[1732449854509,0.55,3349.5,3348.4,0.7866]
[1732449854510,3.53553,3349.5,3348.4,0.81645885]
[1732449854719,0.06566066,3349.4,3348.4,0.81645885]
[1732449855220,0.55,3349.6,3348.4,0.7866]
[1732449855423,0.06547983,3349.3,3348.4,0.7866]
[1732449855734,0.55,3349.3,3348.4,0.7866]
[1732449855950,0.06547983,3349.2,3348.4,0.7866]
[1732449856235,0.06547983,3349.2,3348.5,0.02986022]
[1732449856791,4.30352526,3349.7,3348.5,0.02986022]
[1732449856792,0.55,3349.6,3348.5,0.02986022]
[1732449857027,0.06547983,3349.1,3348.5,0.02986022]
[1732449857208,3.53549,3349.6,3348.6,0.38164602]
[1732449857401,0.06547983,3349.0,3348.5,0.02985854]
[1732449857602,3.53549,3349.6,3348.4,3.81645858]
[1732449857830,0.06547983,3348.9,3348.5,0.38164586]
[1732449858034,3.53549,3349.6,3348.6,0.02985863]
[1732449858231,0.06547983,3348.8,3348.6,0.02985863]
[1732449858453,3.53549,3349.6,3348.6,0.41150449]
[1732449858454,0.55,3349.6,3348.6,0.41150449]
[1732449858612,0.06547983,3348.7,3348.6,0.41150449]
[1732449858938,0.55,3349.6,3348.6,0.38164586]
[1732449859095,2.9858,3349.2,3347.7,0.02985858]
[1732449859297,0.7264,3349.1,3347.7,0.81645858]
[1732449859523,0.7264,3349.1,3347.9,0.58632484]
[1732449859730,0.7264,3349.1,3348.0,0.02986126]
[1732449859977,0.7264,3349.1,3348.2,0.7866]
[1732449860229,0.06547983,3349.0,3348.2,0.7866]
[1732449860438,0.06547983,3349.0,3348.3,0.4115048]
[1732449860608,0.06547983,3349.0,3348.3,0.02985867]
[1732449861600,0.06547983,3349.0,3348.7,3.0]
[1732449861904,0.7264,3350.1,3348.9,0.7866]
[1732449862122,0.7264,3350.1,3349.0,0.02985075]
[1732449862434,0.7264,3350.1,3349.4,3.0]
[1732449862730,0.7264,3350.1,3349.0,0.02985075]
[1732449862946,0.7264,3350.1,3349.4,3.0]
[1732449863096,3.7114,3350.1,3349.3,3.0]
[1732449863304,0.5500055,3349.9,3349.3,3.0]
[1732449863520,0.5500055,3349.9,3348.7,0.02985476]
[1732449863764,5.5e-06,3349.9,3348.7,0.18011664]
[1732449863946,5.5e-06,3349.9,3349.2,3.0]
[1732449864266,5.5e-06,3349.9,3348.7,0.15026188]
[1732449864558,5.5e-06,3349.9,3348.6,0.83485478]
[1732449864559,5.5e-06,3349.9,3348.8,0.0298561]
[1732449865758,0.06277208,3349.8,3349.2,3.0]
[1732449865960,0.06277208,3349.8,3348.6,0.805]
[1732449865961,0.06277208,3349.8,3349.3,0.3298531]
[1732449866171,0.06277208,3349.8,3349.3,0.0298531]
[1732449866341,0.06277208,3349.8,3348.7,0.32815304]